Cogmind - Beta 16.1 @@@ ROGUE MODE // 2026.03.19 @ 22:20:16 Player: APerTAS Result: Destroyed by VT-6WY(R) with Subdweller Beam Cannon Performance ------------- Evolutions (0) 0 Regions Visited (2) 400 Robots Destroyed (0) 0 Value Destroyed (0) 0 Prototype IDs (0) 0 Alien Tech Used (0) 0 Bonus (-140) -140 TOTAL SCORE: 260 Bonus ------- Friendly Fire -140 Cogmind --------- Core Integrity 0/250 Matter 278/300 Energy 100/100 System Corruption 5% Temperature Cool (9) Movement Core (50) Location -10/Subcaves Parts ------- > --- POWER (1) -------- (None) > --- PROPULSION (2) --- (None) > --- UTILITY (2) ------ (None) > --- WEAPON (2) ------- Battle Rifle > --- INVENTORY (5) ---- (None) Peak State ------------ > --- POWER ------------ (None) > --- PROPULSION ------- Wheel > --- UTILITY ---------- (None) > --- WEAPON ----------- Battle Rifle Battle Cannon > --- INVENTORY -------- (None) [Rating: 5] Favorites ----------- Power None Propulsion Wheel Wheel Wheel Utility None Weapon Battle Rifle Ballistic Gun Battle Rifle Ballistic Cannon Battle Cannon Build | -11 -10 -10 ------- Run | Yrd Mat Sub Slots Evolved . | . . . Power . | . . . Propulsion . | . . . Utility . | . . . Weapon . | . . . Parts Attached 3 | . . 3 Power . | . . . Engine . | . . . Core . | . . . Reactor . | . . . Propulsion 1 | . . 1 Treads . | . . . Leg . | . . . Wheel 1 | . . 1 Hover . | . . . Flight . | . . . Utility . | . . . Device . | . . . Storage . | . . . Processor . | . . . Hackware . | . . . Protection . | . . . Artifact . | . . . Weapon 2 | . . 2 Energy Gun . | . . . Energy Cannon . | . . . Ballistic Gun 1 | . . 1 Ballistic Cannon 1 | . . 1 Launcher . | . . . Special Weapon . | . . . Impact Weapon . | . . . Slashing Weapon . | . . . Piercing Weapon . | . . . Special Melee Weapon . | . . . Unidentified Prototypes . | . . . Corrupted Parts 1 | . . 1 System Corruption 1 | . . 1 Parts Lost 2 | . . 2 Power . | . . . Propulsion 1 | . . 1 Utility . | . . . Weapon 1 | . . 1 Highest Loss Streak 2 | . . 2 To Critical Strikes . | . . . Average Backups . | . . . Power . | . . . Propulsion . | . . . Utility . | . . . Weapon . | . . . Tool/Special . | . . . Unused Backups . | . . . Power . | . . . Propulsion . | . . . Utility . | . . . Weapon . | . . . Tool/Special . | . . . Average Slot Usage (%) 14 | . . 15 Wheel 9 | . . 10 Ballistic Gun 2 | . . 2 Ballistic Cannon 2 | . . 2 Peak Build Rating 5 | . . 5 Average Rating 1 | . . 1 On Entrance . | . . . Avg Prop Armor Cover (%) . | . . . Naked Turns 59 | . 24 35 Heaviest Build 5 | . . 5 Greatest Support 10 | 3 3 10 Greatest Overweight (x) . | . . . Average Overweight (x) . | . . . Largest Inventory Capacity 5 | 5 5 5 Average Capacity 5 | 5 5 5 Most Carried . | . . . Average Carried . | . . . Final Capacity 5 | 5 5 5 Final Carried . | . . . Class Distribution -------------------- 100% | Mutant Dominant Class ---------------- Mutant | -10/Materials Mutant | -10/Subcaves Resources | -11 -10 -10 ----------- Run | Yrd Mat Sub Matter Collected 104 | 57 . 47 Remotely . | . . . Salvage Created 35 | . . 35 Parts 1 | . . 1 Haulers Intercepted . | . . . Recyclers Shooed . | . . . Parts Field Recycled . | . . . Retrieved Matter . | . . . Parts Self-Destructed . | . . . Prevented . | . . . Parts Restored . | . . . Kills | -11 -10 -10 ------- Run | Yrd Mat Sub Combat Hostiles Destroyed . | . . . Classes Destroyed 1 | . . 1 Scientist 1 | . . 1 Best Kill Streak . | . . . Combat Bots Only . | . . . Max Kills in Single Turn 1 | . . 1 Gunslinging . | . . . Exploded . | . . . Melee . | . . . Uniques/NPCs Destroyed . | . . . Combat | -11 -10 -10 -------- Run | Yrd Mat Sub Hostile Shots Fired 33 | . 24 9 Missed 9 | . 8 1 Hits 24 | . 16 8 Projectile 24 | . 16 8 Damage Taken 411 | . 169 242 Core 254 | . 169 85 Absorbed by Shields . | . . . Core Remaining (%) 100 | 100 . . Volleys Fired 3 | . . 3 Largest 2 | . . 2 Hottest 58 | . . 58 Shots Fired 6 | . . 6 Gun 3 | . . 3 Cannon 3 | . . 3 Launcher . | . . . Special . | . . . Kinetic 6 | . . 6 Thermal . | . . . Explosive . | . . . Electromagnetic . | . . . Robot Hit Streak 2 | . . 2 Robot Miss Streak 1 | . . 1 Penetration Max . | . . . Secondary Targets . | . . . Shots Hit Robots 4 | . . 4 Core Hits 4 | . 3 1 Critical Kills . | . . . Critical Parts Destroyed . | . . . Critical Strikes 1 | . . 1 Blast 1 | . . 1 Melee Attacks . | . . . Impact . | . . . Slashing . | . . . Piercing . | . . . Sneak Attacks . | . . . Combat Hostiles . | . . . Follow-up Attacks . | . . . Damage Inflicted 195 | . 43 152 Guns 37 | . . 37 Cannons 38 | . . 38 Explosions . | . . . Melee . | . . . Ramming 120 | . 43 77 Kinetic 75 | . . 75 Thermal . | . . . Explosive . | . . . Electromagnetic . | . . . Impact . | . . . Slashing . | . . . Piercing . | . . . Highest Corruption 5 | . . 5 Average Corruption 4 | . . 4 Corruption Purged . | . . . Corruption Blocked . | . . . Effects 5 | . . 5 Message Errors 2 | . . 2 Matter Fused 1 | . . 1 Heat Flow Errors 1 | . . 1 Energy Discharges 1 | . . 1 Overload Shots . | . . . Overflow Damage 1 | . . 1 Projectiles . | . . . Explosions . | . . . Melee 1 | . . 1 Knockbacks . | . . . Impact . | . . . Kinetic . | . . . Secondary . | . . . Self-Inflicted Damage 49 | . 19 30 Shots . | . . . Rammed 37 | . 10 27 Targets Rammed 37 | . 10 27 Kicked . | . . . Crushed . | . . . Highest Temperature 173 | . 29 173 Average Temperature 65 | . 12 105 Received Heat Transfer 141 | . 96 45 Siege Activations . | . . . Martial Activations . | . . . Shielding Activations . | . . . Robots Disrupted . | . . . Combat Hostiles . | . . . Robots Corrupted 1 | . . 1 Combat Hostiles . | . . . Parts Fried 3 | . . 3 Impact Corruptions 1 | . . 1 Robots Melted . | . . . Combat Hostiles . | . . . Parts Melted . | . . . Heat Transferred . | . . . Parts Sabotaged . | . . . Parts Stolen . | . . . Parts Stripped . | . . . Power Chain Reactions . | . . . Alert | -11 -10 -10 ------- Run | Yrd Mat Sub Maximum Alert Level . | . . . Low Security (%) 100 | 100 100 . Level 1 . | . . . Level 2 . | . . . Level 3 . | . . . Level 4 . | . . . Level 5 . | . . . High Security . | . . . Max Security . | . . . Peak Influence . | . . . Initial . | . . . Average . | . . . Influence Increases . | . . . Influence Decreases . | . . . Squads Dispatched . | . . . Investigation . | . . . Extermination . | . . . Reinforcement . | . . . Assault . | . . . Garrison . | . . . Intercept . | . . . Searches Triggered . | . . . Construction Impeded . | . . . Haulers Reinforced . | . . . Active Scanning Responses . | . . . Cargo Convoy Interrupts . | . . . Stealth | -11 -10 -10 --------- Run | Yrd Mat Sub Distress Signals . | . . . Communications Jammed . | . . . Distress Signals . | . . . Times Spotted 8 | . 5 3 Peak Tracking Total 5 | . 5 3 Tactical Retreats . | . . . Traps | -11 -10 -10 ------- Run | Yrd Mat Sub Traps Triggered . | . . . Indirectly . | . . . Trap Hack Attempts . | . . . Triggered . | . . . Disarmed . | . . . Reprogrammed . | . . . Reused . | . . . Traps Extracted . | . . . Installed . | . . . Triggered . | . . . Machines | -11 -10 -10 ---------- Run | Yrd Mat Sub Machines Disabled . | . . . Max in Single Turn . | . . . Machines Repaired . | . . . Machines Dismantled . | . . . Machines Sabotaged . | . . . Overloaded Fab Kills . | . . . Hacking | -11 -10 -10 --------- Run | Yrd Mat Sub Machines Accessed . | . . . Terminals . | . . . Fabricators . | . . . Repair Stations . | . . . Recycling Units . | . . . Scanalyzers . | . . . Garrison Access . | . . . Total Hacks . | . . . Successful . | . . . Failed . | . . . Catastrophic . | . . . Database Lockouts . | . . . Manual . | . . . Terminals . | . . . Fabricators . | . . . Repair Stations . | . . . Recycling Units . | . . . Scanalyzers . | . . . Garrison Access . | . . . Terminal Hacks . | . . . Fabricator Hacks . | . . . Repair Station Hacks . | . . . Recycling Unit Hacks . | . . . Scanalyzer . | . . . Garrison Access Hacks . | . . . Unauthorized Hacks . | . . . Terminals . | . . . Fabricators . | . . . Repair Stations . | . . . Recycling Units . | . . . Scanalyzers . | . . . Garrison Access . | . . . Data Cores Recovered . | . . . Used . | . . . Hacking Detections . | . . . Full Trace Events . | . . . Feedback Events . | . . . Feedback Blocked . | . . . Robot Schematics Acquired . | . . . Robots Built . | . . . Authchips . | . . . Time . | . . . Total Robot Build Rating . | . . . Part Schematics Acquired . | . . . Parts Built . | . . . Authchips . | . . . Time . | . . . Total Part Build Rating . | . . . Part Studies Acquired . | . . . Parts Repaired . | . . . Time . | . . . Parts Recycled . | . . . Recycled Matter . | . . . Retrieved Matter . | . . . Retrieved Components . | . . . Parts Scanalyzed . | . . . Part Schematics Acquired . | . . . Parts Damaged . | . . . Bothacking | -11 -10 -10 ------------ Run | Yrd Mat Sub Used RIF Installer . | . . . Robots Hacked . | . . . Non-combat . | . . . Combat . | . . . Robot Hacks Applied . | . . . Relay Couplers Released . | . . . Fabnet Peak Effective % . | . . . Robots Rewired . | . . . Allies Hacked . | . . . Hacks Repelled . | . . . Allies | -11 -10 -10 -------- Run | Yrd Mat Sub Total Allies . | . . . Largest Group . | . . . Highest-Rated Group . | . . . Highest-Rated Ally . | . . . Total Orders . | . . . Ally Attacks . | . . . Total Damage . | . . . Kills . | . . . Allies Corrupted . | . . . Allies Melted . | . . . Intel | -11 -10 -10 ------- Run | Yrd Mat Sub Active Infowar (turns) . | . . . Robot Analysis Total . | . . . Derelict Logs Recovered 2 | . . 2 Drone Launches . | . . . Drone Recoveries . | . . . Exploration | -11 -10 -10 ------------- Run | Yrd Mat Sub Turns Passed 255 | 11 24 220 Spaces Moved 257 | 22 27 208 Core 63 | 22 27 14 Treads . | . . . Legs . | . . . Wheels 194 | . . 194 Hover . | . . . Flight . | . . . Fastest Speed 50 | 50 50 50 Average Speed 72 | 50 50 77 Slowest Speed 80 | 50 50 80 Overloaded Moves . | . . . Propulsion Burnouts . | . . . Robots Hopped . | . . . Potential Cave-ins . | . . . Cave-ins Triggered . | . . . Exploration Rate (%) 8 | 3 8 15 Regions Visited 2 Branch Regions 1 Pre-discovered Areas . | . . . Known Exits Taken . | . . . Unknown Exits Taken 2 | 1 1 . Scrap Searched 1 | . . 1 Spaces Dug . | . . . Terrain Destroyed . | . . . Melee . | . . . Projectile . | . . . AOE . | . . . Terrain Rammed . | . . . Walls Destroyed . | . . . Machines Disabled . | . . . Actions | -11 -10 -10 --------- Run | Yrd Mat Sub Total 315 | 21 36 258 Wait 17 | . . 17 Move 255 | 21 26 208 Hop . | . . . Pick Up . | . . . Fast Attach 3 | . . 3 Attach . | . . . Detach . | . . . Swap . | . . . Drop . | . . . Fire 3 | . . 3 Melee . | . . . Ram 37 | . 10 27 Kick . | . . . Crush . | . . . Escape Stasis . | . . . Rewire . | . . . Trap . | . . . Miscellaneous . | . . . Route ------- -11/Scrapyard -10/Materials -10/Subcaves (discovered 2 exits: [*Mat] / Rec) History --------- Turn | Location | Event 4 | -11/Scrapyard | Discovered new exit (range 15) 12 | -11/Scrapyard | Entered Materials 13 | -10/Materials | Met a group of wandering Federalists 23 | -10/Materials | Angered wandering Federalists 26 | -10/Materials | Core integrity fell below 50% 29 | -10/Materials | Discovered new exit (range 11) 36 | -10/Materials | Entered Subcaves 37 | -10/Subcaves | Approached by a straggling Scientist 178 | -10/Subcaves | Learned Materials emergency access door positions 181 | -10/Subcaves | Identified exit to Recycling 229 | -10/Subcaves | Discovered new exit (range 9) 249 | -10/Subcaves | Core integrity fell below 20% 256 | -10/Subcaves | Destroyed by VT-6WY(R) with Subdweller Beam Cannon Last Messages --------------- 00157_ WTA3 00178_ Acquired derelict log, extracted data. Data stored: Materials emergency access points. 00179_ System corrupted: Matter fused (-10). 00181_ Acquired derelict log, extracted data. Loading 1 Recycling entrance... 00194_ UF<6NI7PS 8P VXKWZ,:LLS 00209_ Searching scrap... 00209_ Found Battle Cannon. 00209_ Found Battle Rifle. 00209_ Found 32 Matter. 00210_ Acquired 20 matter. 00210_ Acquired Battle Rifle. 00213_ Acquired Battle Cannon. 00214_ Acquired 12 matter. 00217_ System corrupted: Energy discharge (-21). 00229_ EXIT=FOUND 00250_ VT-6WY(R) Disposable Heat Sink blasted off. 00252_ Wheel destroyed. 00254_ Battle Cannon destroyed. Map ----- +----------------------------------------------------+ | ??????????????????????????????????????????????? | | ??????????????????????????????????????????????? | | ??????????????????????????????????????????????? | | ??????????????????????????????????????????????? | | ??????????????????????????????????????????????? | | ??????????????????????????????????????????????? | | ??????????????????????????????????????????????? | | ??????????????????????????????????????????????? | | ??????????????????????????????????????????????? | | ????????????????????????? ?????????????????? | | ????????????????????????? ?????????????????? | | ????????????????????????? ?????????????????? | | ????????????????????????# ?????????????????? | | ?????????????????????#### ?????????????????? | | ????????????????????? ?????????????????? | | ?????????????????????? ?????????????????? | | ?????????????????????? < #?##??????????????? | | ??????????????????????? ## #??????????????? | | ??????????????????????? #??????????????? | | ???????????????????????? ???????????????? | | ???????????????????????? ????????????????? | | ????????????????????????# ?????????????????? | | ??????????????#######???# #?????????????????? | | ??????????????#" "#???# #?????????????????? | | ??????????????# ## #???##RR#?????????????????? | | ??????##??##### ########@ %#?????????????????? | | ??# # # ## # "## ## ##?????????????????? | | ?# # ## R ##??????????????????? | | # " " ###???????????????????? | | # # ## ## ##?????????????????????? | | ???##???###?# ### #??????????????????????? | | ????????????# ## #??????????????????????? | | ????????????# ## #??????????????????????? | | ???????????## ##??????????????????????? | | ???????????# #???? #?????????????????? | | ??????????## ### #?? ??????????????????? | | ??????????# ######## ???????????????????? | | ??????##### # ###??? ## ##???????????????? | | ?????## ## #??? ## #???????????????? | | ???### ## ##? #???????????????? | | ??## ### # #????????????????? | | ??# # #?????????????????? | | ??###### #??????????????????? | | ???????## # ## # ##??????????????????? | | ????????####### ####? #???????????????????? | | ???????????### ##??? #???????????????????? | | ???????????# ##?????????????????????????? | | ???????????# #?????????????????????????? | | ???????????# ## #????????????????????????? | | ??????????## #?# #???????????????????????? | +----------------------------------------------------+ Best States ------------- Heat Dissipation 25 Energy Generation 5 Energy Capacity 100 Matter Stores 292 Matter Capacity 300 Sight Range 16 Terrain Scan Density 10 Evasion (%) 50 Item Schematics ----------------- None Robot Schematics ------------------ None Fabricated ------------ Nothing Repaired ---------- Nothing Studied --------- None Alien Tech Used ----------------- None Achievements -------------- None Challenges ------------ None Game ------ Seed FluxLegReconstructor Manual? 0 Play Time 00:03:04 Cumulative 26.3 hours Start 2026.03.19 @ 22:18:31 End 2026.03.19 @ 22:20:16 Sessions 1 Manual Loads 0 Difficulty Rogue Special Mode None Game No. 120 Rogue 120 Adventurer 0 Explorer 0 Win Type - Total 0 Types 0/0/0/0/0/0/0/0/0/0 Lore% 33 Gallery% 25 Achievement% 34 Wizard Run 0 Options --------- Layout 0 ASCII 0 Keyboard 0 Movement Arrows Keybinds 0 Fullscreen 2 Font 18/Terminus Map View 76x50 Zoom Use 0% Tactical HUD 1 Map Filters NONE Filters NONE Steam 1 RUN: a1a1fa05-5d86-4777-a8e3-d794a3a702cd